[Event "Krakow Championship-A 2022"]
[Site "Krakow"]
[Date "2022.06.29"]
[Round "6.2"]
[White "Fus, Jakub"]
[Black "Zwardon, Vojtech"]
[Result "1/2-1/2"]
[ECO "D38"]
[WhiteElo "2378"]
[BlackElo "2482"]
[Annotator "TA"]
[PlyCount "130"]
[EventDate "2022.06.25"]
[EventType "swiss"]
[EventCountry "POL"]
[SourceTitle "playchess.com"]
[Source "ChessBase"]
[SourceQuality "1"]
[TimeControl "40/5400+30:1800+30"]

{[%evp 15,130,22,20,29,33,34,26,20,25,25,28,25,23,21,21,22,25,28,28,17,31,0,0,0,0,0,43,16,30,16,26,16,18,18,42,36,35,0,42,42,42,42,56,59,84,84,84,84,124,124,124,124,137,137,137,133,133,140,140,157,249,99,211,206,196,99,99,99,99,99,99,99,99,99,99,99,99,99,99,99,99,99,99,99,99,99,99,99,99,99,99,99,99,99,99,99,99,99,99,99,99,99,99,99,99,99,99,0,99,99,99,99,99,99,99,99,99]} 1. d4 {[%emt 0:00:04]} Nf6 {[%emt 0:06:54]} 2. c4 {[%emt 0:00:22]} e6 {[%emt 0:00:02]} 3. Nf3 {[%emt 0:00:28]} d5 {[%emt 0:00:02]} 4. Nc3 {[%emt 0:00:57]} Bb4 {[%emt 0:00:50]} 5. Bg5 {[%emt 0:00:55]} h6 {[%emt 0:02:17]} 6. Bxf6 {[%emt 0:00:22]} Qxf6 {[%emt 0:00:06]} 7. e3 {[%emt 0:03:08]} O-O {[%emt 0:00:35]} 8. Rc1 {[%emt 0:00:09]} c6 {[%emt 0:03:53]} 9. Qb3 {[%emt 0:05:23] [#] D38: Queen's Gambit Declined: Ragozin Defence (4 Nf3 Bb4).} a5 $146 {[%emt 0:03:26]} ({Predecessor:} 9... Bxc3+ 10. Qxc3 Nd7 11. cxd5 exd5 12. Bd3 Re8 13. O-O Nf8 14. b4 Bf5 15. b5 Rac8 16. Bxf5 Qxf5 17. Qa5 Ne6 18. bxc6 bxc6 19. Qxa7 {½-½ (34) Lazavik,D (2465)-Khoroshev,N (2332) Chess.com INT 2021}) 10. a3 {[%emt 0:00:41]} Bd6 {[%emt 0:00:48]} 11. Be2 {[%emt 0:01:09] White has an edge.} Nd7 {[%emt 0:00:43]} 12. O-O {[%emt 0:00:48]} Qg6 {[%emt 0:06:38]} 13. Nh4 {[%emt 0:07:32]} Qf6 {[%emt 0:00:15]} 14. g3 {[%emt 0:05:51]} g5 {[%emt 0:02:41]} 15. Ng2 {[%emt 0:01:39]} Qg6 {[%emt 0:00:12]} 16. f4 {[%emt 0:04:26]} f5 {[%emt 0:00:35]} 17. c5 {[%emt 0:11:55]} Bc7 {[%emt 0:01:48]} 18. Qa4 {[%emt 0:01:12]} Nf6 {[%emt 0:02:24]} 19. b4 {[%emt 0:02:49][%cal Bb2b4,Bb4b5,Bb5b6][%mdl 32]} Bd7 {[%emt 0:01:30]} 20. b5 {[%emt 0:00:07]} Ng4 {[%emt 0:00:08][%cal Og4e3]} 21. b6 {[%emt 0:01:15]} Bd8 {[%emt 0:01:40]} 22. Qd1 {[%emt 0:10:22]} Nf6 {[%emt 0:14:48]} 23. Ne1 {[%emt 0:12:25]} Qg7 {[%emt 0:09:32]} 24. Nf3 $36 {[%emt 0:07:01][%mdl 2048] White has good play.} Ng4 {[%emt 0:02:39]} 25. Qd3 {[%emt 0:02:04]} Be8 {[%emt 0:00:57]} 26. h3 {[%emt 0:02:10]} Nf6 {[%emt 0:01:48] [#] ...gxf4 is the strong threat.} (26... gxf4 $5 {[%cal Rg4e3]} 27. hxg4 fxg4 $11) 27. Kh2 {[%emt 0:02:17]} Ne4 {[%emt 0:03:48] Hoping for ...gxf4.} 28. Rg1 $1 {[%emt 0:02:51]} Bf6 {[%emt 0:02:01]} 29. Ne5 {[%emt 0:03:27] Inhibits g4.} Bxe5 {[%emt 0:00:17]} 30. fxe5 {[%emt 0:00:05]} Bg6 {[%emt 0:01:24][%cal Oe4g3]} 31. Nxe4 {[%emt 0:01:11]} fxe4 {[%emt 0:00:32]} 32. Qd2 {[%emt 0:00:12]} Rf2+ {[%emt 0:04:08]} 33. Rg2 {[%emt 0:00:20]} Qf7 {[%emt 0:00:05]} 34. Rcg1 {[%emt 0:02:59]} h5 {[%emt 0:03:01]} 35. Rxf2 {[%emt 0:00:46]} Qxf2+ {[%emt 0:00:04]} 36. Rg2 {[%emt 0:00:04]} Qf7 {[%emt 0:00:54]} 37. Qe1 {[%emt 0:00:04]} Bf5 {[%emt 0:07:20]} (37... Qh7 $16 38. g4 h4) 38. Rf2 {[%emt 0:00:48]} (38. g4 $18 {has better winning chances.} hxg4 39. Bxg4) 38... g4 {[%emt 0:00:14]} (38... Qh7 $16 {was called for.}) 39. Rf4 $18 {[%emt 0:01:53][%cal Rh3g4]} Qg6 {[%emt 0:01:43] [#]} 40. h4 {[%emt 0:06:22]} ({Better is} 40. hxg4 $1 $18 hxg4 41. Kg2 (41. Kg1 Kg7 $14)) 40... Kf7 {[%emt 0:01:09]} 41. Qf2 {[%emt 0:30:29]} Ke7 {[%emt 0:30:28]} 42. Kg1 {[%emt 0:00:03][%cal Bh2g1,Bg1f1,Bf1e1,Be1d2][%mdl 32]} Kd7 {[%emt 0:00:47]} 43. Kf1 {[%emt 0:00:03]} Qh7 {[%emt 0:00:16]} 44. Ke1 {[%emt 0:00:04]} Qg6 {[%emt 0:00:09]} 45. Kd2 {[%emt 0:00:04]} Qh7 {[%emt 0:00:12]} 46. Qg1 {[%emt 0:01:19]} Qh6 {[%emt 0:00:16]} 47. Bd1 {[%emt 0:00:31]} Qh7 {[%emt 0:01:51]} 48. Bb3 {[%emt 0:00:05]} Qg6 {[%emt 0:00:51]} 49. Qf1 {[%emt 0:00:23]} Ke7 {[%emt 0:00:46]} 50. Ba4 {[%emt 0:00:26]} Kd7 {[%emt 0:00:40]} 51. Qd1 {[%emt 0:00:59]} Qh7 {[%emt 0:02:22]} 52. Rf1 {[%emt 0:00:05]} Qh8 {[%emt 0:00:47]} 53. Qb3 {[%emt 0:00:19][%cal Of1f5] Threatens to win with Rxf5!} Ke7 {[%emt 0:01:06]} 54. Qc3 {[%emt 0:00:40]} Qc8 {[%emt 0:00:40]} 55. Kc1 {[%emt 0:00:37] White is much more active.} Qe8 {[%emt 0:00:21]} 56. Qb2 {[%emt 0:00:19]} Qf8 {[%emt 0:00:17]} 57. Kd2 {[%emt 0:00:30]} Kd7 {[%emt 0:00:17]} 58. Kc3 {[%emt 0:00:14]} Qh6 {[%emt 0:00:17]} 59. Qe2 {[%emt 0:00:10]} Qf8 {[%emt 0:00:49]} 60. Rb1 {[%emt 0:00:15]} Bg6 {[%emt 0:01:07]} 61. Rf1 {[%emt 0:00:34] Against Qf3} Bf5 {[%emt 0:00:04]} 62. Kd2 {[%emt 0:01:25] White is better.} Ke7 {[%emt 0:01:18]} 63. Qf2 {[%emt 0:02:13]} Qh6 {[%emt 0:00:04]} 64. Bb3 {[%emt 0:01:06]} Rd8 {[%emt 0:00:51]} 65. Ke2 {[%emt 0:00:00]} Ra8 {White really could win this.  Weighted Error Value: White=0.08 (flawless) /Black=0.07 (flawless)} 1/2-1/2

[Event "Krakow Championship-A 2022"]
[Site "Krakow"]
[Date "2022.06.29"]
[Round "6.3"]
[White "Romanishin, Oleg M"]
[Black "Pechac, Jergus"]
[Result "1/2-1/2"]
[ECO "A06"]
[WhiteElo "2400"]
[BlackElo "2597"]
[Annotator "TA"]
[PlyCount "106"]
[EventDate "2022.06.25"]
[EventType "swiss"]
[EventCountry "POL"]
[SourceTitle "playchess.com"]
[Source "ChessBase"]
[SourceQuality "1"]
[TimeControl "40/5400+30:1800+30"]

{[%evp 13,106,-38,-24,-31,-31,-26,-16,-60,-38,-52,-13,-29,-31,-27,-38,-27,0,-2,41,0,0,0,0,-10,-6,-29,-35,-52,-15,-42,-27,-46,-24,-33,-15,-13,-7,-12,0,0,0,-6,0,0,0,0,0,0,0,0,0,-36,0,-12,-12,-14,8,0,0,-32,-32,-32,-7,-32,-32,-32,-32,-32,-32,-32,0,0,0,0,0,0,0,0,0,0,0,0,0,0,0,0,0,0,0,0,0,0,0,0,0]} 1. Nf3 {[%emt 0:03:16]} d5 {[%emt 0:00:08]} 2. g3 {[%emt 0:00:23]} g6 {[%emt 0:00:06]} 3. Bg2 {[%emt 0:01:28]} Bg7 {[%emt 0:00:08]} 4. d4 {[%emt 0:00:04]} Nf6 {[%emt 0:00:06]} 5. O-O {[%emt 0:03:10]} O-O {[%emt 0:00:08]} 6. c4 {[%emt 0:00:03]} dxc4 {[%emt 0:00:06]} 7. Ne5 {[%emt 0:00:44]} c5 {[%emt 0:00:10]} 8. d5 {[%emt 0:16:54] D77: Fianchetto Grünfeld: 6 0-0: Replies other than 6...c6.} Nbd7 {[%emt 0:09:13]} 9. Nxc4 {[%emt 0:00:09][%cal Be5c4,Bc4d2,Bd2b3,Bb3c5,Bc5e4,Be4g5][%mdl 32]} b5 $1 {[%emt 0:00:06] [#]} 10. Ncd2 $146 {[%emt 0:01:51]} ({Predecessor:} 10. d6 Rb8 11. dxe7 Qxe7 12. Na5 Rb6 13. Nc3 b4 14. Na4 Ra6 15. Nb7 Re8 16. Bg5 {0-1 (41) Gonzalez,J (2626)-Hotting,A (2566) ICCF email 2004}) 10... Nb6 {[%emt 0:04:01]} 11. Nb3 {[%emt 0:07:30]} Nfxd5 {[%emt 0:06:23]} (11... c4 $5 {[%cal Rc4b3]} 12. Nd4 Nfxd5 $15) 12. Nxc5 {[%emt 0:01:20]} Qd6 {[%emt 0:00:29]} 13. Ne4 {[%emt 0:01:20]} Qe5 {[%emt 0:01:04]} 14. Nbc3 {[%emt 0:07:26]} Bf5 {[%emt 0:04:03][%cal Rd5c3]} (14... Nxc3 15. Nxc3 b4 16. Na4 Nxa4 17. Qxa4 $14 (17. Bxa8 Nxb2 18. Bxb2 Qxb2 $11)) (14... Be6 $5 {[%cal Ra8d8]}) 15. Qb3 {[%emt 0:06:03]} Rfd8 {[%emt 0:13:30]} 16. Nxd5 {[%emt 0:16:45]} Nxd5 {[%emt 0:00:16]} 17. Ng5 {[%emt 0:00:49] [#] Hoping for Bf4.} h6 {[%emt 0:02:43]} 18. e4 {[%emt 0:06:09]} hxg5 {[%emt 0:00:13]} 19. exf5 {[%emt 0:05:35]} (19. exd5 $5 {[%cal Rc1g5]} g4 20. Bg5 $11) 19... Qxf5 {[%emt 0:00:10]} 20. Qxb5 {[%emt 0:00:34]} Rab8 {[%emt 0:03:59]} 21. Qe2 {[%emt 0:01:25]} e6 {[%emt 0:01:17]} 22. Rd1 {[%emt 0:03:58]} Rd7 {[%emt 0:06:37]} 23. Qf3 {[%emt 0:06:03] Prevents Nc3.} Qe5 {[%emt 0:01:10]} ({Resist} 23... Bxb2 24. Qxf5 gxf5 25. Rb1 $14) 24. h3 {[%emt 0:02:54]} Bf6 {[%emt 0:02:25]} 25. Rb1 {[%emt 0:02:18]} Rc7 {[%emt 0:05:55][%cal Od5c3]} 26. Qe4 {[%emt 0:00:50]} Qd6 {[%emt 0:00:08]} 27. Qd3 {[%emt 0:00:51][%cal Rg2d5]} Qe5 {[%emt 0:04:40]} 28. Qe4 {[%emt 0:00:52]} Qd6 {[%emt 0:07:30]} 29. Qd3 {[%emt 0:00:05][%cal Rg2d5]} Rd8 {[%emt 0:00:09]} 30. Be3 {[%emt 0:00:59]} Qb4 {[%emt 0:00:52]} 31. Bxd5 {[%emt 0:00:59]} Rxd5 {[%emt 0:00:11]} 32. Qb3 {[%emt 0:02:31]} Qd6 {[%emt 0:01:01]} 33. Rxd5 {[%emt 0:00:56]} exd5 {[%emt 0:00:03]} 34. Rc1 {[%emt 0:00:39]} Rd7 {[%emt 0:00:36]} 35. Bc5 {[%emt 0:00:28]} Qe5 {[%emt 0:00:25]} 36. Qe3 {[%emt 0:00:36]} Qxb2 {[%emt 0:00:25]} 37. Rd1 {[%emt 0:00:17] Strongly threatening Qe8+.} Kh7 {[%emt 0:01:32]} 38. Qf3 {[%emt 0:00:16]} (38. Bd4 $5 {[%cal Rd4b2]} Qc2 39. Rd3 $15) 38... Kg7 {[%emt 0:02:01]} 39. Kg2 {[%emt 0:00:16]} Qc3 {[%emt 0:04:57]} (39... Qxa2 $2 {[#]} 40. Bf8+ $1 {[%mdl 512]} Kxf8 41. Qxf6 $18) 40. Qg4 {[%emt 0:00:55]} Rc7 {[%emt 0:01:03]} 41. Be3 {[%emt 0:07:53]} Rc4 {[%emt 0:00:53]} 42. Qe2 {[%emt 0:00:43] The position is equal.} Qa5 {[%emt 0:03:31]} 43. Qd3 {[%emt 0:01:28]} Qxa2 {[%emt 0:04:00] Threatens to win with ...d4.} 44. Qxd5 {[%emt 0:00:17]} Rc2 {[%emt 0:01:32]} 45. Qxa2 {[%emt 0:01:34]} Rxa2 $11 {[%emt 0:00:02][%mdl 4096] Endgame KRB-KRB} 46. Rd5 {[%emt 0:00:08]} a5 {[%emt 0:00:11]} 47. Bxg5 {[%emt 0:00:08]} Bxg5 {[%emt 0:00:06]} 48. Rxg5 {[%emt 0:00:57] KR-KR} f5 {[%emt 0:00:04]} 49. g4 {[%emt 0:01:18]} Kf6 {[%emt 0:00:10]} 50. h4 {[%emt 0:00:07]} Ra4 {[%emt 0:00:15]} 51. gxf5 {[%emt 0:00:17]} gxf5 {[%emt 0:00:07]} 52. Rh5 {[%emt 0:01:28]} Ke5 {[%emt 0:00:39]} 53. Rh8 {[%emt 0:00:50]} Kf4 {[%emt 0:01:29] Weighted Error Value: White=0.06 (flawless) /Black=0.08 (flawless)} 1/2-1/2

[Event "Krakow Championship-A 2022"]
[Site "Krakow"]
[Date "2022.06.29"]
[Round "6.4"]
[White "Agdestein, Simen"]
[Black "Rudolf, Michal"]
[Result "0-1"]
[ECO "D55"]
[WhiteElo "2559"]
[BlackElo "2361"]
[Annotator "TA"]
[PlyCount "54"]
[EventDate "2022.06.25"]
[EventType "swiss"]
[EventCountry "POL"]
[SourceTitle "playchess.com"]
[Source "ChessBase"]
[SourceQuality "1"]
[TimeControl "40/5400+30:1800+30"]

{[%evp 14,54,0,10,25,40,33,26,35,25,25,26,17,0,0,0,0,0,15,0,50,-43,-43,-40,-46,-68,-4,-5,-7,-8,-8,-49,-42,-42,-39,-92,-83,-71,-71,-104,-41,-391,-393]} 1. c4 {[%emt 0:01:28]} e6 {[%emt 0:03:30]} 2. Nf3 {[%emt 0:01:09]} Nf6 {[%emt 0:00:36]} 3. Nc3 {[%emt 0:00:19]} d5 {[%emt 0:00:36]} 4. d4 {[%emt 0:00:05]} Be7 {[%emt 0:00:06]} 5. Bg5 {[%emt 0:01:07]} O-O {[%emt 0:01:51]} 6. e3 {[%emt 0:00:27]} h6 {[%emt 0:00:13]} 7. Bf4 {[%emt 0:01:12]} c5 {[%emt 0:04:15]} 8. dxc5 {[%emt 0:00:08]} Qa5 {[%emt 0:04:40] D55: Queen's Gambit Declined: 4 Bg5 Be7: Lines without ...h6 and 6...h6 7 Bxf6.} 9. a3 {[%emt 0:04:12]} dxc4 {[%emt 0:00:50]} 10. Bxc4 {[%emt 0:00:56] Threatens to win with b4.} Qxc5 {[%emt 0:00:08] White has an edge.} 11. Qe2 {[%emt 0:04:49]} a6 {[%emt 0:10:22] [#]} 12. b4 $146 {[%emt 0:07:41]} ({Predecessor:} 12. O-O b5 13. Ba2 Bb7 14. Rac1 Qh5 15. Rfd1 Nbd7 16. Bd6 Bxd6 17. Rxd6 Rac8 18. Rcd1 Rxc3 19. bxc3 {0-1 (40) Solmundarson,M-Magnusson,O Reykjavik 1970}) 12... Qh5 {[%emt 0:02:28]} 13. O-O {[%emt 0:11:11]} b5 {[%emt 0:00:17]} 14. Bd3 {[%emt 0:01:10]} Bb7 {[%emt 0:01:08]} 15. e4 {[%emt 0:00:13]} Nbd7 {[%emt 0:03:18]} 16. h3 {[%emt 0:01:50]} Rac8 {[%emt 0:04:11]} (16... Rfc8 $11 17. Rac1 Nb6) 17. Qb2 {[%emt 0:07:43]} (17. Rac1 $14) 17... Nh7 {[%emt 0:07:15]} 18. a4 {[%emt 0:16:47][%cal Ra4b5]} Bf6 {[%emt 0:09:22]} 19. Rfc1 {[%emt 0:00:58][%cal Ra4b5]} Nb6 {[%emt 0:04:27]} ({Black should play} 19... Ng5 $15 20. Bxg5 Bxg5 21. Nxg5 Qxg5) 20. axb5 $11 {[%emt 0:01:47]} axb5 {[%emt 0:00:10][%cal Ob6a4] [#] Strongly threatening ...Na4!} 21. e5 {[%emt 0:10:36]} Ng5 {[%emt 0:01:02]} 22. Ne1 {[%emt 0:14:10]} ({Don't blunder} 22. Nxb5 $2 {[#]} Nxh3+ $1 {[%mdl 512]} 23. gxh3 Qxf3 $19) 22... Nc4 $1 {[%emt 0:03:45][%cal Bb6c4,Bc4e5,Be5g6][%mdl 32]} 23. Qe2 {[%emt 0:06:58]} ({Much worse is} 23. Bxc4 Rxc4 24. exf6 Nxh3+ 25. gxh3 Rxf4 $17) 23... Qxe2 {[%emt 0:00:40]} 24. Bxe2 {[%emt 0:01:39]} (24. Nxe2 $15 Nxe5 25. Bxb5) 24... Nxe5 $17 {[%emt 0:00:19][%cal Oc8c3] ...Rxc3! is the strong threat. Black is more active.} 25. Ra7 {[%emt 0:01:42]} Ng6 {[%emt 0:01:53]} 26. Bd6 {[%emt 0:01:31]} Ne4 {[%emt 0:06:43]} ({Better is} 26... Rfd8 $17 27. Bc5 Bc6 28. Nxb5 Nf4) 27. Rxb7 $4 {[%emt 0:01:33][%mdl 8192]} ({Only move:} 27. Bxf8 $15 Nxc3 28. Rxc3 (28. Rc2 $2 Be4 $19) 28... Bxc3 29. Rxb7) 27... Nxd6 {[%emt 0:00:58] Weighted Error Value: White=0.42/Black=0.11 (very precise)} 0-1

[Event "Krakow Championship-A 2022"]
[Site "Krakow"]
[Date "2022.06.29"]
[Round "6.5"]
[White "Klimkowski, Jan"]
[Black "Nurkiewicz, Maciej"]
[Result "1-0"]
[ECO "C78"]
[WhiteElo "2401"]
[BlackElo "2332"]
[Annotator "TA"]
[PlyCount "57"]
[EventDate "2022.06.25"]
[EventType "swiss"]
[EventCountry "POL"]
[SourceTitle "playchess.com"]
[Source "ChessBase"]
[SourceQuality "1"]
[TimeControl "40/5400+30:1800+30"]

{[%evp 12,57,33,22,25,15,42,43,50,43,36,49,36,41,105,120,145,137,154,138,139,71,118,127,152,154,304,306,293,295,300,304,304,300,290,304,298,297,271,229,916,932,929,928,850,501,1011,581]} 1. e4 {[%emt 0:00:03]} e5 {[%emt 0:00:26]} 2. Nf3 {[%emt 0:00:11]} Nc6 {[%emt 0:00:05]} 3. Bb5 {[%emt 0:00:17][%cal Bf1b5,Bb5a4,Ba4b3][%mdl 32]} a6 {[%emt 0:00:06]} 4. Ba4 {[%emt 0:00:11]} Nf6 {[%emt 0:00:07]} 5. O-O {[%emt 0:00:21]} b5 {[%emt 0:00:11]} 6. Bb3 {[%emt 0:00:08]} Bb7 {[%emt 0:00:06] 6...Bc5 is the modern continuation.} 7. Nc3 {[%emt 0:01:02]} Bc5 {[%emt 0:01:26] C78: Ruy Lopez: Archangelsk and Möller Defences.} 8. Nd5 {[%emt 0:01:27]} Na5 {[%emt 0:18:08]} 9. d4 $1 {[%emt 0:09:54]} Nxb3 {[%emt 0:01:39] White is slightly better.} 10. axb3 {[%emt 0:00:10]} exd4 {[%emt 0:07:31]} 11. Bg5 {[%emt 0:04:48]} Bxd5 {[%emt 0:00:06]} 12. exd5 {[%emt 0:00:05] [#]} (12. Bxf6 Qxf6 13. exd5 O-O $15) 12... Be7 $146 {[%emt 0:00:34]} (12... O-O $14) ({Predecessor:} 12... O-O 13. Ne5 Re8 14. Re1 h6 15. Bh4 g5 16. Bg3 d6 17. Nc6 Rxe1+ 18. Qxe1 Qe8 19. Qd2 Nxd5 20. Nxd4 Qe4 21. Nf3 {½-½ (21) Delchev,A (2627)-Godena,M (2495) Padova 2014}) 13. d6 $1 $16 {[%emt 0:10:31]} cxd6 {[%emt 0:27:54]} 14. Nxd4 {[%emt 0:00:58]} O-O {[%emt 0:00:12]} 15. Nf5 $1 {[%emt 0:01:31][%mdl 1024] White has strong compensation.} Re8 {[%emt 0:00:54]} 16. Qd4 {[%emt 0:12:45]} ({Much weaker is} 16. Nxd6 $6 Bxd6 17. Qxd6 Re6 $11) (16. Qf3 $142 Nd5 17. Bxe7 (17. Qxd5 Bxg5 18. Nxd6 Rf8 $16) 17... Nxe7 18. Nxd6) 16... h6 {[%emt 0:06:38]} (16... Rc8 $142) 17. Bh4 $1 {[%emt 0:00:39] aiming for Rae1. White is much more active.} Kh7 {[%emt 0:03:24]} 18. Qd3 {[%emt 0:17:22]} g6 {[%emt 0:06:37]} (18... Kg8 $16 {was worth a try.}) 19. Nxe7 $18 {[%emt 0:03:10]} ({Not} 19. Nxd6 Bxd6 20. Qxd6 Re6 $14) 19... Qxe7 {[%emt 0:00:10]} 20. f4 {[%emt 0:01:17] Inhibits Qe5.} d5 {[%emt 0:07:42]} 21. Qd4 {[%emt 0:02:13] Prevents Qc5.} Kg7 {[%emt 0:00:08] [#]} 22. Rae1 {[%emt 0:04:39] Prevents Qe3+.} Qd6 {[%emt 0:00:06] [#]} 23. g4 $1 {[%emt 0:00:16]} Rxe1 {[%emt 0:05:09]} 24. Rxe1 {[%emt 0:13:01][%cal Bf1e1,Be1e2,Be2e5][%mdl 32]} Rh8 {[%emt 0:00:09]} 25. Re2 {[%emt 0:07:40] Be1 is the strong threat.} g5 $2 {[%emt 0:03:54]} (25... a5 26. c4 bxc4) 26. fxg5 {[%emt 0:00:04] White is clearly winning.} hxg5 {[%emt 0:00:04]} 27. Bxg5 {[%emt 0:01:20]} Kg6 {[%emt 0:00:09]} 28. Re5 {[%emt 0:04:35] Black must now prevent Bf4.} Ne4 {[%emt 0:04:15]} (28... Rh3 $142 29. Bf4 Qc6 30. Rg5+ Kh7) 29. Bf4 {[%emt 0:00:40] Weighted Error Value: White=0.18 (very precise) /Black=0.26 (precise)} 1-0

[Event "Krakow Championship-A 2022"]
[Site "Krakow"]
[Date "2022.06.29"]
[Round "6.6"]
[White "Holtel, Jasper"]
[Black "Rozentalis, Eduardas"]
[Result "1/2-1/2"]
[ECO "A06"]
[WhiteElo "2347"]
[BlackElo "2523"]
[Annotator "TA"]
[PlyCount "87"]
[EventDate "2022.06.25"]
[EventType "swiss"]
[EventCountry "POL"]
[SourceTitle "playchess.com"]
[Source "ChessBase"]
[SourceQuality "1"]
[TimeControl "40/5400+30:1800+30"]

{[%evp 9,87,2,17,0,0,0,0,0,0,0,0,0,-3,-17,10,20,15,-31,0,0,0,0,4,0,46,48,98,84,131,115,232,221,201,195,316,278,351,315,312,35,51,47,43,0,0,0,0,0,0,0,0,0,0,0,0,0,0,0,55,0,0,0,0,0,0,0,0,0,0,0,0,0,0,0,0,0,0,0,0,0]} 1. Nf3 {[%emt 0:04:27]} d5 {[%emt 0:00:11]} 2. g3 {[%emt 0:00:06]} c6 {[%emt 0:01:04]} 3. Bg2 {[%emt 0:00:07]} Bg4 {[%emt 0:00:05]} 4. c4 {[%emt 0:00:26]} e6 {[%emt 0:00:15]} 5. Qb3 {[%emt 0:00:24]} Qb6 {[%emt 0:01:16]} 6. Qc2 {[%emt 0:00:09] A11: English Opening: 1...c6.} Nd7 {[%emt 0:00:43]} 7. b3 {[%emt 0:00:08]} Ngf6 {[%emt 0:04:13]} 8. O-O {[%emt 0:01:40]} Bd6 {[%emt 0:03:59]} 9. d3 {[%emt 0:00:55]} Bxf3 {[%emt 0:02:52]} 10. Bxf3 {[%emt 0:00:22] [#]} h5 $146 {[%emt 0:00:07][%cal Bh7h5,Bh5h4][%mdl 32]} ({Predecessor:} 10... O-O 11. Bb2 d4 12. Nd2 e5 13. a3 a5 14. Rab1 Qd8 15. e3 dxe3 16. fxe3 Qe7 {1-0 (42) Samame Castillo,J (2229)-Reinoso,S Lima 2004}) 11. e3 {[%emt 0:19:57]} h4 {[%emt 0:06:42]} (11... Ne5 $5 {[%cal Re5f3]} 12. Be2 Qc7 $14) 12. d4 {[%emt 0:04:03] Inhibits Ne5.} Qc7 {[%emt 0:01:22]} 13. Ba3 {[%emt 0:02:07]} (13. Nc3 $11 {is superior.}) 13... O-O-O {[%emt 0:04:23][%cal Rh4g3]} 14. Bxd6 {[%emt 0:03:51]} Qxd6 {[%emt 0:00:13]} 15. Nc3 {[%emt 0:00:51]} hxg3 {[%emt 0:03:27]} 16. hxg3 {[%emt 0:01:25]} Kb8 {[%emt 0:02:29]} (16... Nh7 $11) 17. c5 {[%emt 0:10:37]} Qe7 {[%emt 0:09:55]} (17... Qc7 $14) 18. b4 $16 {[%emt 0:02:01]} e5 {[%emt 0:00:33]} ({Black should play} 18... Ka8) 19. b5 {[%emt 0:11:31] Hoping for bxc6.} e4 {[%emt 0:00:50]} (19... Ka8 $16) 20. Bg2 $1 $18 {[%emt 0:00:40]} Ka8 {[%emt 0:01:57]} 21. Rab1 {[%emt 0:07:07]} (21. Qa4 $6 Nb8 $14) 21... Ng4 {[%emt 0:03:12]} (21... Qe6 {was called for.} 22. Rb3 Rc8) 22. Rb2 $1 {[%emt 0:05:55]} ({Not} 22. Qa4 Qf6 23. Rb2 (23. bxc6 Rh1+ 24. Bxh1 Qh6) 23... Nxc5 24. dxc5 Qxc3 $17) 22... Qe6 {[%emt 0:08:20] [#]} 23. Rfb1 $1 {[%emt 0:14:21] aiming for bxc6.} ({Weaker is} 23. bxc6 bxc6 24. Rfb1 (24. Qb3 Rb8 $11) 24... Rb8 $14) 23... Rb8 {[%emt 0:04:48]} (23... Qh6 $2 24. bxc6 Qxc6 {[#]} 25. Nxd5 $1 $18 {[%mdl 512]}) 24. bxc6 $2 {[%emt 0:01:55]} (24. Qa4 $18) 24... bxc6 $14 {[%emt 0:00:15]} 25. Rxb8+ {[%emt 0:00:28]} (25. Qa4 {is more complex.} Nh2 26. Rxb8+ Nxb8 27. Nxe4 dxe4 28. Qb4) 25... Rxb8 {[%emt 0:00:42]} 26. Rxb8+ {[%emt 0:00:19]} (26. Bh3 {feels hotter.} Qf5 27. Rxb8+ Kxb8 28. Qe2) 26... Nxb8 {[%emt 0:00:44]} 27. Qe2 {[%emt 0:00:50]} f5 {[%emt 0:02:20]} 28. Bh3 {[%emt 0:00:41]} Nf6 {[%emt 0:00:36]} 29. Qe1 {[%emt 0:01:21]} Nh7 {[%emt 0:06:42]} 30. Ne2 {[%emt 0:01:25]} Ng5 {[%emt 0:00:57] ...Nf3+ is the strong threat.} 31. Bg2 {[%emt 0:00:02]} Nf3+ {[%emt 0:03:15]} 32. Bxf3 {[%emt 0:00:07]} exf3 $11 {[%emt 0:00:02][%mdl 4096] Endgame KQN-KQN} 33. Nf4 {[%emt 0:00:28]} Qe4 {[%emt 0:00:26]} (33... Qe8 $11) 34. Qd1 {[%emt 0:01:10]} (34. Nh3 $1 $14) 34... g5 {[%emt 0:01:21] The position is equal.} 35. Nd3 {[%emt 0:00:44]} Nd7 {[%emt 0:01:50] Against Ne5} 36. Ne1 {[%emt 0:02:07]} g4 {[%emt 0:02:26]} 37. Nd3 {[%emt 0:00:08]} Kb7 {[%emt 0:03:06]} 38. Qb3+ {[%emt 0:00:33]} Kc8 {[%emt 0:00:45]} 39. Kf1 {[%emt 0:00:37]} Qe6 {[%emt 0:01:27]} 40. Nf4 {[%emt 0:02:56]} Qe7 {[%emt 0:05:02]} 41. Qd3 {[%emt 0:06:12]} Qe4 {[%emt 0:04:39]} 42. Qb3 {[%emt 0:00:21]} Qe7 {[%emt 0:00:45]} 43. Qa3 {[%emt 0:01:09] Black must now prevent Qa6+.} Kb7 {[%emt 0:03:16] Against Qa6+} 44. Qb3+ {[%emt 0:03:36] White really could win this.  Weighted Error Value: White=0.13 (very precise) /Black=0.16 (very precise)} 1/2-1/2